bitfinex/quotes_BTCUSD_20250324
["timestamp","ask_amount","ask_price","bid_price","bid_amount"]
[1742843703227,0.11794031,88605.0,88604.0,0.001]
[1742843703434,0.01883747,88605.0,88604.0,0.001]
[1742843703790,0.01883747,88605.0,88604.0,0.226723]
[1742843704189,0.01883747,88605.0,88604.0,0.001]
[1742843704412,0.01883747,88605.0,88604.0,0.226723]
[1742843707394,0.01883747,88605.0,88604.0,0.001]
[1742843707598,0.03921096,88605.0,88604.0,0.226723]
[1742843707824,0.01883747,88605.0,88604.0,0.001]
[1742843708081,0.01883747,88605.0,88604.0,0.226723]
[1742843709103,0.01883747,88605.0,88604.0,0.001]
[1742843709309,0.01883747,88605.0,88604.0,0.226723]
[1742843709517,0.24455747,88605.0,88604.0,0.001]
[1742843709690,0.12019861,88605.0,88604.0,0.001]
[1742843710667,0.12019861,88605.0,88604.0,0.226723]
[1742843711071,0.01883747,88605.0,88604.0,0.226723]
[1742843711247,0.01883747,88605.0,88604.0,0.001]
[1742843711449,0.24455747,88605.0,88604.0,0.001]
[1742843711656,0.01883747,88605.0,88604.0,0.226723]
[1742843712269,0.24455747,88605.0,88604.0,0.001]
[1742843712473,0.1192181,88605.0,88604.0,0.001]
[1742843712675,0.01883747,88605.0,88604.0,0.226723]
[1742843713080,0.01883747,88605.0,88604.0,0.001]
[1742843713432,0.37010111,88605.0,88604.0,0.001]
[1742843714165,0.35881511,88605.0,88604.0,0.001]
[1742843714372,0.13326491,88605.0,88604.0,0.001]
[1742843714589,0.13326491,88605.0,88604.0,0.226723]
[1742843715026,0.35898491,88605.0,88604.0,0.001]
[1742843715229,0.13326491,88605.0,88604.0,0.001]
[1742843716350,0.35898491,88605.0,88604.0,0.001]
[1742843717478,0.13326491,88605.0,88604.0,0.001]
[1742843717929,0.35898491,88605.0,88604.0,0.001]
[1742843718323,0.13326491,88605.0,88604.0,0.226723]
[1742843718574,0.13326491,88605.0,88604.0,0.001]
[1742843718767,0.35898491,88605.0,88604.0,0.001]
[1742843719151,0.13326491,88605.0,88604.0,0.001]
[1742843719353,0.35898491,88605.0,88604.0,0.001]
[1742843719559,0.42428293,88605.0,88604.0,0.001]
[1742843719903,0.19856293,88605.0,88604.0,0.001]
[1742843720077,0.42428293,88605.0,88604.0,0.001]
[1742843720527,0.43556893,88605.0,88604.0,0.001]
[1742843720735,0.42428293,88605.0,88604.0,0.001]
[1742843721304,0.13326491,88605.0,88604.0,0.001]
[1742843721639,0.35898491,88605.0,88604.0,0.001]
[1742843723293,0.13326491,88605.0,88604.0,0.226723]
[1742843723717,0.13326491,88605.0,88604.0,0.001]
[1742843723919,0.13326491,88605.0,88604.0,0.226723]
[1742843724126,0.01900727,88605.0,88604.0,0.226723]
[1742843724520,0.0001698,88605.0,88604.0,0.226723]
[1742843724719,0.00448423,88605.0,88604.0,0.226723]
[1742843724935,0.0001698,88605.0,88604.0,0.226723]
[1742843725841,0.07711002,88605.0,88604.0,0.226723]
[1742843726029,0.07279559,88605.0,88604.0,0.226723]
[1742843726253,0.07711002,88605.0,88604.0,0.226723]
[1742843726988,0.00448423,88605.0,88604.0,0.226723]
[1742843731694,0.00968209,88605.0,88604.0,0.226723]
[1742843734556,0.00968209,88605.0,88604.0,0.001]
[1742843735326,0.00968209,88605.0,88604.0,0.226723]
[1742843736526,0.00968209,88605.0,88604.0,0.001]
[1742843737308,0.29143279,88605.0,88604.0,0.001]
[1742843737530,0.05442679,88605.0,88604.0,0.001]
[1742843737840,0.28014679,88605.0,88604.0,0.001]
[1742843738179,0.05442679,88605.0,88604.0,0.001]
[1742843738876,0.28014679,88605.0,88604.0,0.001]
[1742843739107,0.00968209,88605.0,88604.0,0.001]
[1742843739621,0.23540209,88605.0,88604.0,0.001]
[1742843740307,0.37548658,88605.0,88604.0,0.001]
[1742843741563,0.225729,88602.0,88599.0,0.225734]
[1742843741830,0.225729,88602.0,88600.0,0.225732]
[1742843742050,0.00952675,88601.0,88600.0,0.225732]
[1742843742729,0.00952675,88601.0,88600.0,0.225733]
[1742843742946,0.01454085,88604.0,88603.0,0.225725]
[1742843743213,0.01454085,88604.0,88601.0,0.225728]
[1742843743425,0.36404499,88604.0,88602.0,0.225728]
[1742843743840,0.13832199,88604.0,88603.0,0.225725]
[1742843744010,0.24978735,88604.0,88602.0,0.225728]
[1742843744185,0.36604499,88604.0,88602.0,0.225728]
[1742843744389,0.36604499,88604.0,88601.0,0.225731]
[1742843744594,0.36604499,88604.0,88602.0,0.225727]
[1742843744802,0.37945523,88604.0,88602.0,0.225727]
[1742843744997,0.37845523,88604.0,88602.0,0.225727]
[1742843745217,0.55159485,88587.0,88586.0,0.0003394]
[1742843745450,0.225817,88568.0,88558.0,0.21176]
[1742843745658,0.225817,88568.0,88549.0,0.011293]
[1742843745659,0.24036585,88564.0,88549.0,0.0818]
[1742843745873,0.37316292,88564.0,88560.0,0.225833]
[1742843746075,0.39387865,88564.0,88559.0,0.225835]
[1742843746269,0.39387865,88564.0,88559.0,0.225837]
[1742843746474,0.13822322,88564.0,88563.0,0.3272254]
[1742843746688,0.13822322,88564.0,88563.0,0.225827]
[1742843746892,0.00010172,88564.0,88563.0,0.225827]
[1742843747097,0.00952898,88564.0,88563.0,0.225827]
[1742843747315,0.00010172,88564.0,88563.0,0.225827]
[1742843747522,0.00960735,88564.0,88563.0,0.225827]
[1742843749364,0.00960735,88564.0,88563.0,0.2261668]
[1742843752065,0.00960735,88564.0,88563.0,0.22519786]
[1742843754366,0.01895971,88564.0,88563.0,0.22519786]
[1742843755460,0.00960735,88564.0,88563.0,0.22519786]
[1742843755996,0.00960735,88564.0,88563.0,0.21770886]
[1742843757487,0.00960735,88564.0,88563.0,0.35289986]
[1742843760552,0.00010172,88564.0,88563.0,0.35289986]
[1742843760770,0.00010172,88564.0,88563.0,0.4671575]
[1742843762029,7.2e-07,88564.0,88563.0,0.8757575]
[1742843763941,7.2e-07,88564.0,88563.0,0.8787575]
[1742843764420,7.2e-07,88564.0,88563.0,0.8757575]
[1742843764744,7.2e-07,88564.0,88563.0,0.8787575]
[1742843764943,7.2e-07,88564.0,88563.0,0.8817575]
[1742843765165,7.2e-07,88564.0,88563.0,0.8787575]
[1742843765654,7.2e-07,88564.0,88563.0,0.8817575]
[1742843765876,7.2e-07,88564.0,88563.0,0.90477351]
[1742843766063,7.2e-07,88564.0,88563.0,0.90177351]
[1742843766456,7.2e-07,88564.0,88563.0,0.90477351]
[1742843766854,7.2e-07,88564.0,88563.0,0.90177351]
[1742843767347,7.2e-07,88564.0,88563.0,0.90277351]
[1742843767547,7.2e-07,88564.0,88563.0,1.0097175]
[1742843767718,7.2e-07,88564.0,88563.0,1.0127175]
[1742843768502,7.2e-07,88564.0,88563.0,1.0097175]
[1742843768879,7.2e-07,88564.0,88563.0,1.0127175]
[1742843769096,7.2e-07,88564.0,88563.0,1.0097175]
[1742843769756,7.2e-07,88564.0,88563.0,1.0057175]
[1742843769961,7.2e-07,88564.0,88563.0,1.0097175]
[1742843770632,7.2e-07,88564.0,88563.0,1.0087175]
[1742843770836,7.2e-07,88564.0,88563.0,1.0127175]
[1742843771090,7.2e-07,88564.0,88563.0,1.0097175]
[1742843771294,7.2e-07,88564.0,88563.0,1.0127175]
[1742843771681,7.2e-07,88564.0,88563.0,1.0097175]
[1742843771904,7.2e-07,88564.0,88563.0,1.0127175]
[1742843772140,7.2e-07,88564.0,88563.0,1.0087175]
[1742843772315,7.2e-07,88564.0,88563.0,1.0057175]
[1742843772514,7.2e-07,88564.0,88563.0,1.0087175]
[1742843773118,7.2e-07,88564.0,88563.0,1.0127175]
[1742843773321,0.00017062,88564.0,88563.0,1.0127175]
[1742843773528,0.00017062,88564.0,88563.0,1.0087175]
[1742843773975,0.00017062,88564.0,88563.0,1.0127175]
[1742843783846,0.00017062,88564.0,88563.0,0.9652775]
[1742843784073,6.2e-07,88564.0,88563.0,0.9652775]
[1742843788222,6.2e-07,88564.0,88563.0,0.8887775]
[1742843794766,0.01012836,88564.0,88563.0,0.8887775]
[1742843795380,6.2e-07,88564.0,88563.0,0.8887775]
[1742843796289,0.00981421,88564.0,88563.0,0.77451986]
[1742843796491,6.2e-07,88564.0,88563.0,0.77451986]
[1742843797095,0.00984328,88564.0,88563.0,0.77451986]
[1742843798342,0.00984328,88564.0,88563.0,0.64459986]
[1742843798571,0.09114328,88564.0,88563.0,0.22470886]
[1742843798759,0.12396771,88564.0,88563.0,0.22470886]
[1742843799064,0.09114328,88564.0,88563.0,0.22470886]
[1742843799271,0.13924328,88564.0,88563.0,0.22470886]
[1742843799478,0.14859994,88564.0,88563.0,0.22170886]
[1742843800063,0.13924328,88564.0,88563.0,0.22170886]
[1742843800444,0.13924328,88564.0,88563.0,0.21770886]
[1742843808993,0.00984328,88564.0,88563.0,0.21770886]
[1742843810662,0.00984328,88564.0,88563.0,0.22899986]
[1742843811320,0.00984328,88564.0,88563.0,0.21770886]
[1742843813454,0.00984328,88564.0,88563.0,0.22899986]
[1742843813847,6.2e-07,88564.0,88563.0,0.30829986]
[1742843814843,6.2e-07,88564.0,88563.0,0.22899986]
[1742843816228,6.2e-07,88564.0,88563.0,0.22999986]
[1742843817568,6.2e-07,88564.0,88563.0,0.23199986]
[1742843819811,6.2e-07,88564.0,88563.0,0.3462575]
[1742843820019,6.2e-07,88564.0,88563.0,0.4277575]
[1742843821320,6.2e-07,88564.0,88563.0,0.4744575]
[1742843821539,6.2e-07,88564.0,88563.0,0.89328889]
[1742843822360,6.2e-07,88564.0,88563.0,0.22070886]
[1742843822522,6.2e-07,88564.0,88563.0,0.21970886]
[1742843822740,6.2e-07,88564.0,88563.0,0.22070886]
[1742843823113,6.2e-07,88564.0,88563.0,0.22370886]
[1742843823937,6.2e-07,88564.0,88563.0,0.35358886]
[1742843824977,6.2e-07,88564.0,88563.0,0.22370886]
[1742843826140,6.2e-07,88564.0,88563.0,0.35358886]
[1742843830327,0.00820068,88564.0,88563.0,0.22370886]
[1742843830671,0.06486496,88564.0,88563.0,0.22370886]
[1742843831320,0.0566649,88564.0,88563.0,0.22370886]
[1742843831524,0.0566649,88564.0,88563.0,0.22070886]
[1742843832380,0.0566649,88564.0,88563.0,0.21770886]
[1742843832990,0.04890062,88564.0,88563.0,0.21770886]
[1742843833664,0.05664253,88564.0,88563.0,0.21770886]
[1742843833868,0.04890062,88564.0,88563.0,0.21770886]
[1742843834250,0.05664253,88564.0,88563.0,0.21770886]
[1742843834605,0.04890062,88564.0,88563.0,0.21770886]
[1742843835966,0.05662624,88564.0,88563.0,0.21770886]
[1742843836171,0.04890062,88564.0,88563.0,0.21770886]
[1742843836592,0.05662624,88564.0,88563.0,0.21770886]
[1742843837352,0.35662624,88564.0,88563.0,0.21770886]
[1742843839257,0.46245051,88564.0,88563.0,0.0003398]
[1742843839473,0.46245051,88564.0,88563.0,0.2261668]
[1742843839687,0.46245051,88564.0,88563.0,0.0003398]
[1742843839888,0.46245051,88564.0,88563.0,0.2261668]
[1742843840334,0.46245051,88564.0,88563.0,0.0003398]
[1742843840546,0.37116709,88564.0,88563.0,0.0003398]
[1742843841207,0.37116709,88564.0,88563.0,0.2261668]
[1742843841426,0.37116709,88564.0,88563.0,0.0003398]
[1742843842065,0.37116709,88564.0,88563.0,0.2261668]
[1742843844861,0.59699209,88564.0,88563.0,0.0003398]
[1742843845074,0.48542473,88564.0,88563.0,0.2261668]
[1742843845279,0.48542473,88564.0,88563.0,0.0003398]
[1742843845490,0.537156,88549.0,88539.0,0.0003394]
[1742843845724,0.3,88530.0,88525.0,0.0003394]
[1742843845921,0.31454085,88528.0,88526.0,0.2262604]
[1742843846127,0.42879849,88528.0,88527.0,0.225919]
[1742843846590,0.45174357,88528.0,88527.0,0.225919]
[1742843847266,0.45174357,88528.0,88527.0,0.22604203]
[1742843848587,0.45174357,88528.0,88527.0,0.22804203]
[1742843848889,0.15174357,88528.0,88527.0,0.22804203]
[1742843849088,0.18507996,88528.0,88527.0,0.22904203]
[1742843849497,0.48507996,88528.0,88527.0,0.22904203]
[1742843850049,0.48507996,88528.0,88527.0,0.22704203]
[1742843851269,0.48507996,88528.0,88527.0,0.22604203]
[1742843852409,0.15174357,88528.0,88527.0,0.22604203]
[1742843852625,0.13720272,88528.0,88527.0,0.22604203]
[1742843852806,0.14474445,88528.0,88527.0,0.22604203]
[1742843854331,0.14474445,88528.0,88527.0,0.21604203]
[1742843855393,0.14474445,88528.0,88527.0,0.21638183]
[1742843858783,0.13720272,88528.0,88527.0,0.21638183]
[1742843860899,0.17568895,88528.0,88527.0,0.21638183]
[1742843861110,0.18304045,88528.0,88527.0,0.21638183]
[1742843862149,0.14455422,88528.0,88527.0,0.21638183]
[1742843862571,0.13720272,88528.0,88527.0,0.21638183]
[1742843867684,0.02294508,88528.0,88527.0,0.21638183]
[1742843867912,0.0001699,88539.0,88538.0,0.225891]
[1742843868153,0.04187689,88539.0,88537.0,0.225893]
[1742843868383,0.04916006,88539.0,88538.0,0.225891]
[1742843869303,0.05416006,88539.0,88538.0,0.225891]
[1742843871017,0.06447747,88539.0,88538.0,0.225891]
[1742843872388,0.02277048,88539.0,88538.0,0.225891]
[1742843872524,0.01548731,88539.0,88538.0,0.225891]
[1742843872946,0.02277048,88539.0,88538.0,0.225891]
[1742843873784,0.01548731,88539.0,88538.0,0.225891]
[1742843874241,0.02279568,88539.0,88538.0,0.225891]
[1742843874939,0.080737,88539.0,88538.0,0.225891]
[1742843877606,0.02279568,88539.0,88538.0,0.225891]
[1742843885151,0.02279568,88539.0,88526.0,0.0003394]
[1742843885152,0.3,88537.0,88526.0,0.0003394]
[1742843885364,0.3,88537.0,88535.0,0.225897]
[1742843885581,0.41425764,88537.0,88536.0,0.225896]
[1742843886446,0.41625764,88537.0,88536.0,0.225896]
[1742843886675,0.49886635,88537.0,88536.0,0.225896]
[1742843887100,0.50086635,88537.0,88536.0,0.225896]
[1742843887675,0.50286635,88537.0,88536.0,0.225896]
[1742843887890,0.72876235,88537.0,88528.0,0.225917]
[1742843888142,0.02583585,88532.0,88526.0,0.0003394]
[1742843888340,0.3,88530.0,88529.0,0.225914]
[1742843888476,0.41425764,88530.0,88529.0,0.225914]
[1742843888880,0.41425764,88530.0,88528.0,0.225915]
[1742843889083,0.41425764,88530.0,88529.0,0.225914]
[1742843892051,0.31048731,88539.0,88538.0,0.225891]
[1742843892263,0.31048731,88539.0,88538.0,0.284685]
[1742843892481,0.01048731,88539.0,88538.0,0.284685]
[1742843892689,0.0001699,88539.0,88538.0,0.284685]
[1742843892895,0.0001699,88539.0,88538.0,0.361985]
[1742843893359,0.0031699,88539.0,88538.0,0.361985]
[1742843893775,0.0051699,88539.0,88538.0,0.361985]
[1742843894007,0.0031699,88539.0,88538.0,0.361985]
[1742843894625,0.0001699,88539.0,88538.0,0.361985]
[1742843895653,0.0001699,88539.0,88538.0,0.365985]
[1742843895905,9e-07,88539.0,88538.0,0.56717519]
[1742843896106,9e-07,88539.0,88538.0,0.88884264]
[1742843896317,9e-07,88539.0,88538.0,0.89184264]
[1742843901665,9e-07,88539.0,88538.0,0.89218244]
[1742843905655,9e-07,88539.0,88538.0,1.02194244]
[1742843914246,9e-07,88539.0,88538.0,1.02190244]
[1742843921122,9e-07,88539.0,88538.0,0.76738244]
[1742843921495,9e-07,88539.0,88538.0,0.89710244]
[1742843922378,9e-07,88539.0,88538.0,0.76738244]
[1742843922575,9e-07,88539.0,88538.0,0.3742448]
[1742843923710,0.01038784,88539.0,88538.0,0.3742448]
[1742843923923,9e-07,88539.0,88538.0,0.3742448]
[1742843925417,9e-07,88539.0,88538.0,0.48850244]
[1742843925648,9e-07,88539.0,88538.0,0.56620244]
[1742843928437,9e-07,88539.0,88538.0,0.97480244]
[1742843928846,9e-07,88539.0,88538.0,1.00987136]
[1742843929290,9e-07,88539.0,88538.0,1.30987136]
[1742843929495,9e-07,88539.0,88538.0,1.37775719]
[1742843929937,9e-07,88539.0,88538.0,1.22525136]
[1742843930146,9e-07,88539.0,88538.0,1.35097136]
[1742843930565,9e-07,88539.0,88538.0,1.31990244]
[1742843931014,9e-07,88539.0,88538.0,1.31590244]
[1742843931194,9e-07,88539.0,88538.0,1.35097166]
[1742843931451,0.0010009,88539.0,88538.0,1.01083166]
[1742843931661,0.0010009,88539.0,88538.0,0.97276244]
[1742843931887,0.0010009,88539.0,88538.0,1.00782678]
[1742843932068,0.0010009,88539.0,88538.0,1.01382678]
[1742843932318,0.0010009,88539.0,88538.0,1.00782678]
[1742843932522,0.0010009,88539.0,88538.0,1.01382678]
[1742843933452,0.0010009,88539.0,88538.0,0.88414678]
[1742843933706,0.0010009,88539.0,88538.0,1.01382678]
[1742843935340,0.0010009,88539.0,88538.0,0.90106244]
[1742843938076,0.0010009,88539.0,88538.0,0.7868048]
[1742843940024,0.01125428,88539.0,88538.0,0.7868048]
[1742843940250,0.01125428,88539.0,88538.0,0.3782048]
[1742843952317,0.01025428,88539.0,88538.0,0.3732048]
[1742843952517,0.01025428,88539.0,88538.0,0.3672048]
[1742843952784,0.01025428,88539.0,88538.0,0.3782048]
[1742843952984,0.01025428,88539.0,88538.0,0.3732048]
[1742843953158,0.01025428,88539.0,88538.0,0.3672048]
[1742843953365,0.01025428,88539.0,88538.0,0.3692048]
[1742843953561,0.01025428,88539.0,88538.0,0.3712048]
[1742843956362,9e-07,88539.0,88538.0,0.3712048]
[1742843958138,9e-07,88539.0,88538.0,0.56666244]
[1742843958396,9e-07,88539.0,88538.0,0.61306244]
[1742843959035,9e-07,88539.0,88538.0,0.61106244]
[1742843959269,9e-07,88539.0,88538.0,0.60906244]
[1742843959499,9e-07,88539.0,88538.0,0.61106244]
[1742843959729,9e-07,88539.0,88538.0,0.64808609]
[1742843959913,9e-07,88539.0,88538.0,0.64408609]
[1742843960113,9e-07,88539.0,88538.0,0.73601864]
[1742843960340,9e-07,88539.0,88538.0,0.95408609]
[1742843960546,9e-07,88539.0,88538.0,0.95208609]
[1742843960963,9e-07,88539.0,88538.0,0.95408609]
[1742843961163,9e-07,88539.0,88538.0,0.96237317]
[1742843961718,9e-07,88539.0,88538.0,0.81640609]
[1742843961935,9e-07,88539.0,88538.0,0.94808609]
[1742843962132,9e-07,88539.0,88538.0,0.94608609]
[1742843962397,9e-07,88539.0,88538.0,0.90906244]
[1742843962612,9e-07,88539.0,88538.0,0.91406244]
[1742843962822,9e-07,88539.0,88538.0,0.90906244]
[1742843963054,9e-07,88539.0,88538.0,0.56266244]
[1742843963253,9e-07,88539.0,88538.0,0.48646244]
[1742843963379,9e-07,88539.0,88538.0,0.48746244]
[1742843963848,9e-07,88539.0,88538.0,0.49246244]
[1742843964636,9e-07,88539.0,88538.0,0.48646244]
[1742843964836,9e-07,88539.0,88538.0,0.49246244]
[1742843975213,9e-07,88539.0,88538.0,0.2372308]
[1742843975474,0.01272099,88539.0,88538.0,0.2372308]
[1742843976406,0.01272099,88539.0,88538.0,0.2312308]
[1742843976647,9e-07,88539.0,88538.0,0.2262308]
[1742843976883,9e-07,88539.0,88538.0,0.2282308]
[1742843978071,9e-07,88539.0,88538.0,0.2312308]
[1742843979382,0.0278009,88541.0,88540.0,0.225886]
[1742843981205,0.0278009,88541.0,88540.0,0.227886]
[1742843981833,0.0278009,88541.0,88540.0,0.225886]
[1742843982062,0.0278009,88541.0,88540.0,0.227886]
[1742843982265,0.0278009,88541.0,88540.0,0.225886]
[1742843984091,0.0279708,88541.0,88540.0,0.225886]
[1742843988321,0.03550396,88541.0,88540.0,0.225886]
[1742843989361,0.0279708,88541.0,88540.0,0.225886]
[1742843990946,0.0001699,88541.0,88540.0,0.225886]
[1742843991786,0.225886,88540.0,88538.0,0.0003398]
[1742843991994,0.34768089,88539.0,88538.0,0.0003398]
[1742843992196,0.00753425,88539.0,88538.0,0.2262308]
[1742843992578,0.0001699,88541.0,88540.0,0.225886]
[1742843992926,0.00770306,88541.0,88540.0,0.225886]
[1742843993136,0.0001699,88541.0,88540.0,0.225886]
[1742843993560,0.00770306,88541.0,88540.0,0.225886]
[1742843994498,0.28009296,88546.0,88542.0,0.225879]
[1742843994896,0.00627438,88545.0,88542.0,0.225879]
[1742843995439,0.0226422,88544.0,88543.0,0.225878]
[1742843995869,0.02889485,88544.0,88543.0,0.225878]
[1742843996072,0.00625265,88544.0,88543.0,0.225878]
[1742843996736,0.01054911,88548.0,88543.0,0.225878]
[1742843996737,0.01054911,88548.0,88547.0,0.225868]
[1742843997136,0.3,88557.0,88555.0,0.225846]
[1742843997565,0.31075926,88557.0,88556.0,0.225845]
[1742843997789,0.31075926,88557.0,88555.0,0.225846]
[1742843998097,0.33319342,88557.0,88555.0,0.225846]
[1742843998481,0.237137,88556.0,88555.0,0.00010172]
[1742843998764,0.537137,88556.0,88555.0,0.00010172]
[1742844000932,0.538137,88556.0,88555.0,0.00010172]
[1742844001128,0.526845,88556.0,88555.0,0.00010172]
[1742844001328,0.78119313,88556.0,88555.0,0.00010172]
[1742844002091,0.78742927,88556.0,88555.0,0.00010172]
[1742844002734,0.87062927,88556.0,88555.0,0.00010172]
[1742844005399,0.57062927,88556.0,88555.0,0.00010172]
[1742844007893,0.57079907,88556.0,88555.0,0.00010172]
[1742844008588,0.45654143,88556.0,88555.0,0.00010172]
[1742844013910,0.75654143,88556.0,88555.0,0.00010172]
[1742844020861,0.13620443,88556.0,88555.0,0.00010172]
[1742844021121,0.00740594,88556.0,88555.0,0.31614172]
[1742844021596,0.0011698,88556.0,88555.0,0.31614172]
[1742844022073,0.0011698,88556.0,88555.0,0.30484972]
[1742844022309,0.0001698,88556.0,88555.0,0.31614172]
[1742844022828,0.0011698,88556.0,88555.0,0.31614172]
[1742844023064,0.0011698,88556.0,88555.0,0.31814172]
[1742844023300,0.0001698,88556.0,88555.0,0.31814172]
[1742844023771,0.0001698,88556.0,88555.0,0.32114172]
[1742844024486,0.0001698,88556.0,88555.0,0.31914172]
[1742844024735,0.0001698,88556.0,88555.0,0.32114172]
[1742844046687,0.0001698,88556.0,88555.0,0.45070172]
[1742844063408,0.0001698,88556.0,88555.0,0.37180172]
[1742844070278,0.0001698,88556.0,88555.0,0.56725936]
[1742844070478,8e-07,88556.0,88555.0,0.64975362]
[1742844071106,8e-07,88556.0,88555.0,0.64675362]
[1742844071537,8e-07,88556.0,88555.0,0.64975362]
[1742844071938,8e-07,88556.0,88555.0,0.64675362]
[1742844072366,8e-07,88556.0,88555.0,0.65175362]
[1742844072576,8e-07,88556.0,88555.0,0.64975362]
[1742844072984,8e-07,88556.0,88555.0,0.65375362]
[1742844073195,8e-07,88556.0,88555.0,0.64975362]
[1742844073632,8e-07,88556.0,88555.0,0.65375362]
[1742844074341,8e-07,88556.0,88555.0,0.61365936]
[1742844074539,8e-07,88556.0,88555.0,0.61865936]
[1742844075032,8e-07,88556.0,88555.0,0.50432172]
[1742844075989,8e-07,88556.0,88555.0,0.61857936]
[1742844076877,8e-07,88556.0,88555.0,1.06222932]
[1742844077538,8e-07,88556.0,88555.0,1.36722932]
[1742844078385,8e-07,88556.0,88555.0,1.36222932]
[1742844078591,8e-07,88556.0,88555.0,1.23607678]
[1742844078793,8e-07,88556.0,88555.0,1.36155678]
[1742844078999,8e-07,88556.0,88555.0,1.36655678]
[1742844079201,8e-07,88556.0,88555.0,1.37255678]
[1742844079525,8e-07,88556.0,88555.0,1.46766458]
[1742844079764,8e-07,88556.0,88555.0,1.47366458]
[1742844079942,8e-07,88556.0,88555.0,1.47866458]
[1742844080169,8e-07,88556.0,88555.0,1.47266458]
[1742844080356,8e-07,88556.0,88555.0,1.47900418]
[1742844080486,8e-07,88556.0,88555.0,1.47400418]
[1742844080685,8e-07,88556.0,88555.0,1.48000418]
[1742844081573,8e-07,88556.0,88555.0,2.18000418]
[1742844083162,8e-07,88556.0,88555.0,1.37889638]
[1742844083382,8e-07,88556.0,88555.0,1.37389638]
[1742844083563,8e-07,88556.0,88555.0,1.24441638]
[1742844083769,8e-07,88556.0,88555.0,1.37385638]
[1742844084175,8e-07,88556.0,88555.0,1.36785638]
[1742844084622,8e-07,88556.0,88555.0,1.37385638]
[1742844086288,8e-07,88556.0,88555.0,1.36785638]
[1742844086814,8e-07,88556.0,88555.0,1.36552892]
[1742844089210,8e-07,88556.0,88555.0,0.93608892]
[1742844089444,8e-07,88556.0,88555.0,0.78762132]
[1742844090471,8e-07,88556.0,88555.0,0.78162132]
[1742844090683,8e-07,88556.0,88555.0,0.36702132]
[1742844090885,8e-07,88556.0,88555.0,0.37802132]
[1742844096015,0.80484594,88556.0,88555.0,0.01144132]
[1742844096219,0.525868,88547.0,88546.0,0.0003396]
[1742844096422,0.73416649,88547.0,88546.0,0.0003396]
[1742844096626,0.75040532,88547.0,88546.0,0.0003396]
[1742844099763,0.08444583,88547.0,88546.0,0.0003396]
[1742844099966,8.3e-07,88547.0,88546.0,0.1410726]
[1742844100177,8.3e-07,88547.0,88546.0,0.14333141]
[1742844100340,8.3e-07,88547.0,88546.0,0.25758905]
[1742844100542,8.3e-07,88547.0,88546.0,0.25533024]
[1742844100788,7.948e-05,88556.0,88546.0,0.25533024]
[1742844100789,7.948e-05,88556.0,88555.0,0.011292]
[1742844100994,7.948e-05,88556.0,88555.0,0.23714]
[1742844103317,7.948e-05,88556.0,88555.0,0.23814]
[1742844103685,7.948e-05,88556.0,88555.0,0.23914]
[1742844104063,7.948e-05,88556.0,88555.0,0.50734044]
[1742844104064,4.8e-07,88556.0,88555.0,0.50734044]
[1742844105135,4.8e-07,88556.0,88555.0,0.50634044]
[1742844105342,4.8e-07,88556.0,88555.0,0.50668004]
[1742844105484,0.00017028,88556.0,88555.0,0.50668004]
[1742844105886,0.00017028,88556.0,88555.0,0.63512004]
[1742844106112,0.00017028,88556.0,88555.0,0.63912004]
[1742844106319,0.00017028,88556.0,88555.0,0.63512004]
[1742844106734,0.00017028,88556.0,88555.0,0.64012004]
[1742844107493,0.00017028,88556.0,88555.0,1.04972004]
[1742844108036,0.00017028,88556.0,88555.0,1.04872004]
[1742844108234,2.8e-07,88556.0,88555.0,1.04872004]
[1742844108481,2.8e-07,88556.0,88555.0,1.05372004]
[1742844108672,2.8e-07,88556.0,88555.0,1.40362004]
[1742844109068,2.8e-07,88556.0,88555.0,1.43848819]
[1742844109881,2.8e-07,88556.0,88555.0,1.42848819]
[1742844110281,2.8e-07,88556.0,88555.0,1.43948819]
[1742844110688,2.8e-07,88556.0,88555.0,1.43448819]
[1742844111131,2.8e-07,88556.0,88555.0,1.44048819]
[1742844111720,2.8e-07,88556.0,88555.0,1.43448819]
[1742844112059,2.8e-07,88556.0,88555.0,1.43444819]
[1742844112280,2.8e-07,88556.0,88555.0,1.42844819]
[1742844112658,2.8e-07,88556.0,88555.0,1.43444819]
[1742844113063,2.8e-07,88556.0,88555.0,1.44044819]
[1742844113442,2.8e-07,88556.0,88555.0,1.44902365]
[1742844116355,2.8e-07,88556.0,88555.0,1.98618365]
[1742844119126,2.8e-07,88556.0,88555.0,1.67760819]
[1742844120110,2.8e-07,88556.0,88555.0,1.64274004]
[1742844120954,2.8e-07,88556.0,88555.0,1.46344004]
[1742844121176,2.8e-07,88556.0,88555.0,0.79491342]
[1742844121770,2.8e-07,88556.0,88555.0,0.92427342]
[1742844121920,2.8e-07,88556.0,88555.0,0.9159996]
[1742844122327,2.8e-07,88556.0,88555.0,0.9099996]
[1742844122575,2.8e-07,88556.0,88555.0,0.9129996]
[1742844122777,2.8e-07,88556.0,88555.0,0.9069996]
[1742844123098,2.8e-07,88556.0,88555.0,0.7836396]
[1742844123411,2.8e-07,88556.0,88555.0,0.9129996]
[1742844123535,2.8e-07,88556.0,88555.0,0.9069996]
[1742844123964,2.8e-07,88556.0,88555.0,0.8997076]
[1742844124170,2.8e-07,88556.0,88555.0,0.7703476]
[1742844125628,2.8e-07,88556.0,88555.0,0.7816396]
[1742844126027,2.8e-07,88556.0,88555.0,0.2444796]
[1742844131274,2.8e-07,88556.0,88555.0,0.35873724]
[1742844131492,2.8e-07,88556.0,88555.0,0.48809724]
[1742844132852,2.8e-07,88556.0,88555.0,0.0073396]
[1742844133048,0.66363731,88556.0,88555.0,0.0073396]
[1742844133907,0.42650031,88556.0,88555.0,0.0033396]
[1742844134052,0.67429262,88556.0,88555.0,0.0033396]
[1742844134551,0.80309111,88556.0,88555.0,0.0003396]
[1742844138019,0.82610425,88556.0,88555.0,0.0003396]
[1742844138270,0.41686873,88556.0,88555.0,0.0003396]
[1742844138510,0.41686873,88556.0,88555.0,0.2261876]
[1742844138956,0.41686873,88556.0,88555.0,0.0003396]
[1742844139230,0.64271373,88556.0,88555.0,0.0003396]
[1742844142580,0.65400573,88556.0,88555.0,0.0003396]
[1742844142819,0.76826337,88556.0,88555.0,0.0003396]
[1742844144260,0.65400573,88556.0,88555.0,0.0003396]
[1742844145565,0.41686873,88556.0,88555.0,0.0003396]
[1742844145767,0.33366873,88556.0,88555.0,0.2261876]
[1742844146647,2.8e-07,88556.0,88555.0,0.2261876]
[1742844147835,0.22584528,88556.0,88555.0,0.0003396]
[1742844148047,2.8e-07,88556.0,88555.0,0.0003396]
[1742844148227,2.8e-07,88556.0,88555.0,0.2261876]
[1742844148813,0.01958511,88556.0,88555.0,0.2261876]
[1742844150401,2.8e-07,88556.0,88555.0,0.2261876]
[1742844151665,2.8e-07,88556.0,88555.0,0.0003396]
[1742844151879,2.8e-07,88556.0,88555.0,0.2261876]